Workbook

Sheet Wksh 1 - Market Experience
A1: Press TAB and directional arrow keys to read through the document. If macros are disabled, press and hold the ALT key and press the F, then I, and then N key. After that, select the Enable All Content option by pressing enter. (note that you can also press the C key to select "Enable All Content") Instructions can be found in cells K1 through K4. If screen reader fails to announce a cell after performing a dropdown selection, please press F2 and then ESC to force the screen reader to resume. | B1: Unified Rate Review v6.1 [assistive technology users, please reference cell A1 for instructions] | K1: To add a product to Worksheet 2 - Plan Product Info, select the Add Product button or Ctrl + Shift + P.
K2: To add a plan to Worksheet 2 - Plan Product Info, select the Add Plan button or Ctrl + Shift + L.
B3: Company Legal Name: | C3: Molina Healthcare of Kentucky, Inc. | K3: To validate, select the Validate button or Ctrl + Shift + I.
B4: HIOS Issuer ID: | C4: 73891 | D4: State: | E4: KY | K4: To finalize, select the Finalize button or Ctrl + Shift + F.
B5: Effective Date of Rate Change(s): | C5: =MAX('Wksh 2 - Plan Product Info'!E19:I19) -> 00:00:00 | D5: Market: | E5: Individual
B8: Market Level Calculations (Same for all Plans)
B11: Section I: Experience Period Data
B12: Experience Period: | D12: 2023-01-01 | E12: to | F12: =EDATE(D12,12)-1 -> 12/31/2023
E13: Total | F13: PMPM
B14: Allowed Claims | E14: 3085273.935 | F14: =E14/E19 -> 477.8925
B15: Reinsurance | E15: 0 | F15: =E15/E19 -> 0
B16: Incurred Claims in Experience Period | E16: 2466109.298 | F16: =E16/E19 -> 381.9872
B17: Risk Adjustment | E17: -49659.59452 | F17: =E17/E19 -> -7.692
B18: Experience Period Premium | E18: 3549323.81 | F18: =E18/E19 -> 549.7713
B19: Experience Period Member Months | E19: ='Wksh 2 - Plan Product Info'!D33 -> 6456
B21: Section II: Projections
D22: Year 1 Trend | F22: Year 2 Trend
B23: Benefit Category | C23: Experience Period Index Rate PMPM | D23: Cost | E23: Utilization | F23: Cost | G23: Utilization | H23: Trended EHB Allowed Claims PMPM
B24: Inpatient Hospital | C24: 90.70616533 | D24: 1 | E24: 1 | F24: 1 | G24: 1 | H24: =PRODUCT(C24:G24) -> 90.7062
B25: Outpatient Hospital | C25: 162.1932816 | D25: 1 | E25: 1 | F25: 1 | G25: 1 | H25: 162.1933
B26: Professional | C26: 126.2562957 | D26: 1 | E26: 1 | F26: 1 | G26: 1 | H26: 126.2563
B27: Other Medical | C27: 8.586959371 | D27: 1 | E27: 1 | F27: 1 | G27: 1 | H27: 8.587
B28: Capitation | C28: 0.2567828377 | D28: 1 | E28: 1 | F28: 1 | G28: 1 | H28: 0.2568
B29: Prescription Drug | C29: 89.89300805 | D29: 1 | E29: 1 | F29: 1 | G29: 1 | H29: 89.893
B30: Total | C30: =SUM(C24:C29) -> 477.8925 | H30: =SUM(H24:H29) -> 477.8925
B32: Morbidity Adjustment | F32: 1
B33: Demographic Shift | F33: 1
B34: Plan Design Changes | F34: 1
B35: Other | F35: 1
B36: Adjusted Trended EHB Allowed Claims PMPM for | D36: =IF(C5<>"",C5,"") -> 1/1/2025 | F36: =H30*PRODUCT(F32:F35) -> 477.8925
B38: Manual EHB Allowed Claims PMPM | F38: 520.8842305
B39: Applied Credibility % | F39: 0
G41: Projected Period Totals
B42: Projected Index Rate for | D42: =IF(C5<>"",C5,"") -> 1/1/2025 | F42: =ROUND(F39*F36+(1-F39)*F38,2) -> 520.88 | G42: =F42*F48 -> 6479747.2
B43: Reinsurance | F43: 0 | G43: =F43*F48 -> 0
B44: Risk Adjustment Payment/Charge | F44: -23.78289451 | G44: =F44*F48 -> -295859.2077
B45: Exchange User Fees | F45: 0 | G45: =F45*F46*F48 -> 0
B46: Market Adjusted Index Rate | F46: =(F42-F43-F44)/(1-F45) -> 544.6629 | G46: =F46*F48 -> 6775606.408
B48: Projected Member Months | F48: ='Wksh 2 - Plan Product Info'!D73 -> 12440
B50: Information Not Releasable to the Public Unless Authorized by Law: This information has not been publically disclosed and may be privileged and confidential. It is for internal government use only and must not be disseminated, distributed, or copied to persons not authorized to receive the information. Unauthorized disclosure may result in prosecution to the full extent of the law.

Sheet Wksh 2 - Plan Product Info
A1: Press TAB and directional arrow keys to read through the document. If macros are disabled, press and hold the ALT key and press the F, then I, and then N key. After that, select the Enable All Content option by pressing enter. (note that you can also press the C key to select "Enable All Content") Instructions can be found in cells P1 through P6. If screen reader fails to announce a cell after performing a dropdown selection, please press F2 and then ESC to force the screen reader to resume. | C1: Product-Plan Data Collection [assistive technology users, please reference cell A1 for instructions] | P1: To add a product to Worksheet 2 - Plan Product Info, select the Add Product button or Ctrl + Shift + P.
P2: To add a plan to Worksheet 2 - Plan Product Info, select the Add Plan button or Ctrl + Shift + L.
C3: Company Legal Name: | D3: =IF('Wksh 1 - Market Experience'!C3<>"", 'Wksh 1 - Market Experience'!C3,"") ->  | P3: To validate, select the Validate button or Ctrl + Shift + I.
C4: HIOS Issuer ID: | D4: =IF('Wksh 1 - Market Experience'!C4<>"", 'Wksh 1 - Market Experience'!C4,"") ->  | E4: State: | F4: =IF('Wksh 1 - Market Experience'!E4<>"",'Wksh 1 - Market Experience'!E4,"") ->  | P4: To finalize, select the Finalize button or Ctrl + Shift + F.
C5: Effective Date of Rate Change(s): | D5: =IF('Wksh 1 - Market Experience'!C5<>"", 'Wksh 1 - Market Experience'!C5,"") -> 00:00:00 | E5: Market: | F5: =IF('Wksh 1 - Market Experience'!E5<>"",'Wksh 1 - Market Experience'!E5,"") ->  | P5: To remove a product, navigate to the corresponding Product Name/Product ID field and select the Remove Product button or Ctrl + Shift + Q.
P6: To remove a plan, navigate to the corresponding Plan Name/Plan ID field and select the Remove Plan button or Ctrl + Shift + A.
C7: Product/Plan Level Calculations
B9: Field # | C9: Section I: General Product and Plan Information
B10: 1.1 | C10: Product Name | E10: Molina Healthcare | H10: Molina Healthcare +Vision
B11: 1.2 | C11: Product ID | E11: 73891KY001 | H11: 73891KY002
B12: 1.3 | C12: Plan Name | E12: Gold 1 | F12: Silver 1 | G12: Silver 12 with First 4 Primary Care Visits Free | H12: Gold 1 with Adult Vision Services | I12: Silver 1 with Adult Vision Services
B13: 1.4 | C13: Plan ID (Standard Component ID) | E13: 73891KY0010001 | F13: 73891KY0010002 | G13: 73891KY0010009 | H13: 73891KY0020001 | I13: 73891KY0020002
B14: 1.5 | C14: Metal | E14: Gold | F14: Silver | G14: Silver | H14: Gold | I14: Silver
B15: 1.6 | C15: AV Metal Value | E15: 0.7801 | F15: 0.7 | G15: 0.7 | H15: 0.7801 | I15: 0.7
B16: 1.7 | C16: Plan Category | E16: Renewing | F16: Renewing | G16: Renewing | H16: Renewing | I16: Renewing
B17: 1.8 | C17: Plan Type | E17: HMO | F17: HMO | G17: HMO | H17: HMO | I17: HMO
B18: 1.9 | C18: Exchange Plan? | E18: Yes | F18: Yes | G18: Yes | H18: Yes | I18: Yes
B19: 1.10 | C19: Effective Date of Proposed Rates | E19: 2025-01-01 | F19: 2025-01-01 | G19: 2025-01-01 | H19: 2025-01-01 | I19: 2025-01-01
B20: 1.11 | C20: Cumulative Rate Change % (over 12 mos prior) | E20: -0.06746111152 | F20: 0.001085407133 | G20: 0.01404396273 | H20: -0.0628970531 | I20: -9.992105571e-06
B21: 1.12 | C21: Product Rate Increase % | E21: =IF(SUMPRODUCT((E16:G16="Renewing")*((E14:G14="Platinum")+(E14:G14="Gold")+(E14:G14="Silver")+(E14:G14="Bronze")+(E14:G14="Catastrophic")))=0, 0, ROUND(ROUND(SUMPRODUCT(1+E20:G20,E34:G34,E35:G35,--(E16:G16="Renewing")*((E14:G14="Platinum")+(E14:G14="Gold")+(E14:G14="Silver")+(E14:G14="Bronze")+(E14:G14="Catastrophic")))/SUMPRODUCT(E34:G34,E35:G35,--(E16:G16="Renewing")*((E14:G14="Platinum")+(E14:G14="Gold")+(E14:G14="Silver")+(E14:G14="Bronze")+(E14:G14="Catastrophic"))), 4)-1, 4)) -> 0 | H21: =IF(SUMPRODUCT((H16:I16="Renewing")*((H14:I14="Platinum")+(H14:I14="Gold")+(H14:I14="Silver")+(H14:I14="Bronze")+(H14:I14="Catastrophic")))=0, 0, ROUND(ROUND(SUMPRODUCT(1+H20:I20,H34:I34,H35:I35,--(H16:I16="Renewing")*((H14:I14="Platinum")+(H14:I14="Gold")+(H14:I14="Silver")+(H14:I14="Bronze")+(H14:I14="Catastrophic")))/SUMPRODUCT(H34:I34,H35:I35,--(H16:I16="Renewing")*((H14:I14="Platinum")+(H14:I14="Gold")+(H14:I14="Silver")+(H14:I14="Bronze")+(H14:I14="Catastrophic"))), 4)-1, 4)) -> 0
B22: 1.13 | C22: Submission Level Rate Increase % | E22: =IF(SUMPRODUCT((E16:I16="Renewing")*((E14:I14="Platinum")+(E14:I14="Gold")+(E14:I14="Silver")+(E14:I14="Bronze")+(E14:I14="Catastrophic")))=0, 0, ROUND(ROUND(SUMPRODUCT(1+E20:I20,E34:I34,E35:I35,--(E16:I16="Renewing")*((E14:I14="Platinum")+(E14:I14="Gold")+(E14:I14="Silver")+(E14:I14="Bronze")+(E14:I14="Catastrophic")))/SUMPRODUCT(E34:I34,E35:I35,--(E16:I16="Renewing")*((E14:I14="Platinum")+(E14:I14="Gold")+(E14:I14="Silver")+(E14:I14="Bronze")+(E14:I14="Catastrophic"))), 4)-1, 4)) -> 0
A24: Worksheet 1 Totals | C24: Section II: Experience Period and Current Plan Level Information
B25: 2.1 | C25: Plan ID (Standard Component ID) | D25: Total | E25: =E13 -> 0 | F25: =F13 -> 0 | G25: =G13 -> 0 | H25: =H13 -> 0 | I25: =I13 -> 0
A26: ='Wksh 1 - Market Experience'!E14 -> 0 | B26: 2.2 | C26: Allowed Claims | D26: =SUM(E26:XFD26) -> 3085273.934 | E26: =14023.951597116 -> 0 | F26: =1767415.60414769 -> 0 | G26: =748809.599997356 -> 0 | H26: =72559.4759951293 -> 0 | I26: =482465.302791718 -> 0
A27: ='Wksh 1 - Market Experience'!E15 -> 0 | B27: 2.3 | C27: Reinsurance | D27: =SUM(E27:XFD27) -> 0 | E27: =0 -> 0 | F27: =0 -> 0 | G27: =0 -> 0 | H27: =0 -> 0 | I27: =0 -> 0
B28: 2.4 | C28: Member Cost Sharing | D28: =SUM(E28:XFD28) -> 619164.6364 | E28: =2718.78106617596 -> 0 | F28: =339149.512015959 -> 0 | G28: =131618.273569886 -> 0 | H28: =25676.0462946593 -> 0 | I28: =120002.023435318 -> 0
B29: 2.5 | C29: Cost Sharing Reduction | D29: =SUM(E29:XFD29) -> 0 | E29: =0 -> 0 | F29: =0 -> 0 | G29: =0 -> 0 | H29: =0 -> 0 | I29: =0 -> 0
A30: ='Wksh 1 - Market Experience'!E16 -> 0 | B30: 2.6 | C30: Incurred Claims | D30: =D26-D27-D28-D29 -> 2466109.298 | E30: 0 | F30: 0 | G30: 0 | H30: 0 | I30: 0
A31: ='Wksh 1 - Market Experience'!E17 -> 0 | B31: 2.7 | C31: Risk Adjustment Transfer Amount | D31: =SUM(E31:XFD31) -> -49659.5945 | E31: =-481.388174531704 -> 0 | F31: =-20783.9168881872 -> 0 | G31: =-19143.9993377078 -> 0 | H31: =90.918925878354 -> 0 | I31: =-9341.20904399447 -> 0
A32: ='Wksh 1 - Market Experience'!E18 -> 0 | B32: 2.8 | C32: Premium | D32: =SUM(E32:XFD32) -> 3549323.81 | E32: =27246.41 -> 0 | F32: =1968022.4 -> 0 | G32: =952357.73 -> 0 | H32: =79329.04 -> 0 | I32: =522368.23 -> 0
A33: ='Wksh 1 - Market Experience'!E19 -> 0 | B33: 2.9 | C33: Experience Period Member Months | D33: =SUM(E33:XFD33) -> 6456 | E33: =53 -> 0 | F33: =3529 -> 0 | G33: =1710 -> 0 | H33: =119 -> 0 | I33: =1045 -> 0
B34: 2.10 | C34: Current Enrollment | D34: =SUM(E34:XFD34) -> 875 | E34: =9 -> 0 | F34: =357 -> 0 | G34: =323 -> 0 | H34: =10 -> 0 | I34: =176 -> 0
B35: 2.11 | C35: Current Premium PMPM | D35: =SUMPRODUCT(E35:XFD35,E34:XFD34)/D34 -> 545.9775 | E35: =631.789635555555 -> 0 | F35: =541.816638655462 -> 0 | G35: =549.030216718266 -> 0 | H35: =565.315 -> 0 | I35: =543.328238636364 -> 0
B36: 2.12 | C36: Loss Ratio | D36: =D30/(D31+D32) -> 0.7046702616 | E36: 0 | F36: 0 | G36: 0 | H36: 0 | I36: 0
C37: Per Member Per Month
B38: 2.13 | C38: Allowed Claims | D38: =D26/D33 -> 477.8925 | E38: 0 | F38: 0 | G38: 0 | H38: 0 | I38: 0
B39: 2.14 | C39: Reinsurance | D39: =D27/D33 -> 0 | E39: 0 | F39: 0 | G39: 0 | H39: 0 | I39: 0
B40: 2.15 | C40: Member Cost Sharing | D40: =D28/D33 -> 95.9053 | E40: 0 | F40: 0 | G40: 0 | H40: 0 | I40: 0
B41: 2.16 | C41: Cost Sharing Reduction | D41: =D29/D33 -> 0 | E41: 0 | F41: 0 | G41: 0 | H41: 0 | I41: 0
B42: 2.17 | C42: Incurred Claims | D42: =D30/D33 -> 381.9872 | E42: 0 | F42: 0 | G42: 0 | H42: 0 | I42: 0
B43: 2.18 | C43: Risk Adjustment Transfer Amount | D43: =D31/D33 -> -7.692 | E43: 0 | F43: 0 | G43: 0 | H43: 0 | I43: 0
B44: 2.19 | C44: Premium | D44: =D32/D33 -> 549.7713 | E44: 0 | F44: 0 | G44: 0 | H44: 0 | I44: 0
C46: Section III: Plan Adjustment Factors
B47: 3.1 | C47: Plan ID (Standard Component ID) | E47: =E13 -> 0 | F47: =F13 -> 0 | G47: =G13 -> 0 | H47: =H13 -> 0 | I47: =I13 -> 0
B48: 3.2 | C48: Market Adjusted Index Rate | E48: ='Wksh 1 - Market Experience'!F46 -> 0
B49: 3.3 | C49: AV and Cost Sharing Design of Plan | E49: 1.06237595 | F49: 0.8142457096 | G49: 0.8045231277 | H49: 1.06237595 | I49: 0.8142457096
B50: 3.4 | C50: Provider Network Adjustment | E50: 1 | F50: 1 | G50: 1 | H50: 1 | I50: 1
B51: 3.5 | C51: Benefits in Addition to EHB | E51: 1 | F51: 1 | G51: 1 | H51: 1.008371438 | I51: 1.01092252
C52: Administrative Costs
B53: 3.6 | C53: Administrative Expense | E53: 0.1140525001 | F53: 0.1435336528 | G53: 0.1450022965 | H53: 0.1132189942 | I53: 0.1422160429
B54: 3.7 | C54: Taxes and Fees | E54: 0.0191400762 | F54: 0.01932108755 | G54: 0.01933010488 | H54: 0.01913495856 | I54: 0.01931299756
B55: 3.8 | C55: Profit & Risk Load | E55: 0.03 | F55: 0.03 | G55: 0.03 | H55: 0.03 | I55: 0.03
B56: 3.9 | C56: Catastrophic Adjustment | E56: 1 | F56: 1 | G56: 1 | H56: 1 | I56: 1
B57: 3.10 | C57: Plan Adjusted Index Rate | E57: =($E$48*PRODUCT(E49:E51)*E56)/(1-SUM(E53:E55)) -> 0 | F57: =($E$48*PRODUCT(F49:F51)*F56)/(1-SUM(F53:F55)) -> 0 | G57: =($E$48*PRODUCT(G49:G51)*G56)/(1-SUM(G53:G55)) -> 0 | H57: =($E$48*PRODUCT(H49:H51)*H56)/(1-SUM(H53:H55)) -> 0 | I57: =($E$48*PRODUCT(I49:I51)*I56)/(1-SUM(I53:I55)) -> 0
B59: 3.11 | C59: Age Calibration Factor | D59: 0.5981764738 | E59: =IF(D59<>"", D59, "") -> 0
B60: 3.12 | C60: Geographic Calibration Factor | D60: 1 | E60: =IF(D60<>"", D60, "") -> 0
B61: 3.13 | C61: Tobacco Calibration Factor | D61: 1 | E61: =IF(D61<>"", D61, "") -> 0
B62: 3.14 | C62: Calibrated Plan Adjusted Index Rate | E62: =E57*(PRODUCT($E$59:$E$61)) -> 0 | F62: =F57*(PRODUCT($E$59:$E$61)) -> 0 | G62: =G57*(PRODUCT($E$59:$E$61)) -> 0 | H62: =H57*(PRODUCT($E$59:$E$61)) -> 0 | I62: =I57*(PRODUCT($E$59:$E$61)) -> 0
C64: Section IV: Projected Plan Level Information
B65: 4.1 | C65: Plan ID (Standard Component ID) | D65: Total | E65: =E13 -> 0 | F65: =F13 -> 0 | G65: =G13 -> 0 | H65: =H13 -> 0 | I65: =I13 -> 0
B66: 4.2 | C66: Allowed Claims | D66: =SUM(E66:XFD66) -> 6479747.2 | E66: =58338.56 -> 0 | F66: =2651279.2 -> 0 | G66: =2398652.4 -> 0 | H66: =64589.12 -> 0 | I66: =1306887.92 -> 0
B67: 4.3 | C67: Reinsurance | D67: =SUM(E67:XFD67) -> 0 | E67: =0 -> 0 | F67: =0 -> 0 | G67: =0 -> 0 | H67: =0 -> 0 | I67: =0 -> 0
B68: 4.4 | C68: Member Cost Sharing | D68: =SUM(E68:XFD68) -> 1196388.384 | E68: =13297.5763609387 -> 0 | F68: =477504.70774906 -> 0 | G68: =455488.672819936 -> 0 | H68: =14722.316685325 -> 0 | I68: =235375.110361963 -> 0
B69: 4.5 | C69: Cost Sharing Reduction | D69: =SUM(E69:XFD69) -> 0 | E69: =0 -> 0 | F69: =0 -> 0 | G69: =0 -> 0 | H69: =0 -> 0 | I69: =0 -> 0
B70: 4.6 | C70: Incurred Claims | D70: =D66-D67-D68-D69 -> 5283358.816 | E70: 0 | F70: 0 | G70: 0 | H70: 0 | I70: 0
B71: 4.7 | C71: Risk Adjustment Transfer Amount | D71: =SUM(E71:XFD71) -> -241232.741 | E71: =-2171.8703367069 -> 0 | F71: =-98703.7501235545 -> 0 | G71: =-89298.7758976363 -> 0 | H71: =-2404.57072992549 -> 0 | I71: =-48653.7738821215 -> 0
B72: 4.8 | C72: Premium | D72: =SUM(E72:XFD72) -> 6856506.037 | E72: =77445.9156138979 -> 0 | F72: =2796722.33276541 -> 0 | G72: =2504609.70746212 -> 0 | H72: =86374.927943451 -> 0 | I72: =1391353.15279289 -> 0
B73: 4.9 | C73: Projected Member Months | D73: =SUM(E73:XFD73) -> 12440 | E73: =112 -> 0 | F73: =5090 -> 0 | G73: =4605 -> 0 | H73: =124 -> 0 | I73: =2509 -> 0
B74: 4.10 | C74: Loss Ratio | D74: =D70/(D71+D72) -> 0.7986607023 | E74: 0 | F74: 0 | G74: 0 | H74: 0 | I74: 0
C75: Per Member Per Month
B76: 4.11 | C76: Allowed Claims | D76: =D66/D73 -> 520.88 | E76: 0 | F76: 0 | G76: 0 | H76: 0 | I76: 0
B77: 4.12 | C77: Reinsurance | D77: =D67/D73 -> 0 | E77: 0 | F77: 0 | G77: 0 | H77: 0 | I77: 0
B78: 4.13 | C78: Member Cost Sharing | D78: =D68/D73 -> 96.1727 | E78: 0 | F78: 0 | G78: 0 | H78: 0 | I78: 0
B79: 4.14 | C79: Cost Sharing Reduction | D79: =D69/D73 -> 0 | E79: 0 | F79: 0 | G79: 0 | H79: 0 | I79: 0
B80: 4.15 | C80: Incurred Claims | D80: =D70/D73 -> 424.7073 | E80: 0 | F80: 0 | G80: 0 | H80: 0 | I80: 0
B81: 4.16 | C81: Risk Adjustment Transfer Amount | D81: =D71/D73 -> -19.3917 | E81: 0 | F81: 0 | G81: 0 | H81: 0 | I81: 0
B82: 4.17 | C82: Premium | D82: =D72/D73 -> 551.1661 | E82: 0 | F82: 0 | G82: 0 | H82: 0 | I82: 0

Sheet Wksh 3 - Rating Areas
A1: Rating Area Data Collection [assistive technology users, please reference cell A2 for instructions] | C1: Specify the total number of Rating Areas in your State by selecting the Create Rating Areas button or Ctrl + Shift + R.
A2: Press TAB and directional arrow keys to read through the document. If macros are disabled, press and hold the ALT key and press the F, then I, and then N key. After that, select the Enable All Content option by pressing enter. (note that you can also press the C key to select "Enable All Content") Instructions can be found in cells C1 through C4. If screen reader fails to announce a cell after performing a dropdown selection, please press F2 and then ESC to force the screen reader to resume. | C2: Select only the Rating Areas you are offering plans within and add a factor for each area.
C3: To validate, select the Validate button or Ctrl + Shift + I.
C4: To finalize, select the Finalize button or Ctrl + Shift + F.
A5: Rating Area | B5: Rating Factor
A6: Rating Area 2 | B6: 1.045468736
A7: Rating Area 3 | B7: 0.989892163
A8: Rating Area 5 | B8: 1.020301986
A9: Rating Area 6 | B9: 1.240511048
A10: Rating Area 7 | B10: 1.028690902

Sheet PlanTemplate (hidden)
A1: REBUILD | C1: Product-Plan Data Collection
C3: Company Legal Name: | D3: =IF('Wksh 1 - Market Experience'!C3<>"", 'Wksh 1 - Market Experience'!C3,"") ->  | N3: State: | O3: =IF('Wksh 1 - Market Experience'!E4="","",'Wksh 1 - Market Experience'!E4) -> 
C4: HIOS Issuer ID: | D4: =IF('Wksh 1 - Market Experience'!C4<>"", 'Wksh 1 - Market Experience'!C4,"") ->  | N4: Market: | O4: =IF('Wksh 1 - Market Experience'!E5="","",'Wksh 1 - Market Experience'!E5) -> 
C5: Effective Date of Rate Change(s): | D5: =IF('Wksh 1 - Market Experience'!#REF!<>"", 'Wksh 1 - Market Experience'!#REF!,"") -> 
C7: Product/Plan Level Calculations
B9: Field # | C9: Section I: General Product and Plan Information
B10: 1.1 | C10: Product Name | K10: Rating Area 1 | L10: AL | M10: New | N10: Platinum | O10: Yes
B11: 1.2 | C11: Product ID | K11: Rating Area 2 | L11: AK | M11: Renewing | N11: Gold | O11: No
B12: 1.3 | C12: Plan Name | K12: Rating Area 3 | L12: AZ | M12: Terminated | N12: Silver
B13: 1.4 | C13: Plan ID (Standard Component ID) | K13: Rating Area 4 | L13: AR | N13: Bronze
B14: 1.5 | C14: Metal | K14: Rating Area 5 | L14: CA | N14: Catastrophic
B15: 1.6 | C15: AV Metal Value | K15: Rating Area 6 | L15: CO | N15: Not Applicable
B16: 1.7 | C16: Plan Category | K16: Rating Area 7 | L16: CT
B17: 1.8 | C17: Plan Type | L17: DC
B18: 1.9 | C18: Exchange Plan? | L18: DE
B19: 1.10 | C19: Effective Date of Proposed Rates | L19: FL
B20: 1.11 | C20: Cumulative Rate Change % (over 12 mos prior) | L20: GA
B21: 1.12 | C21: Product Rate Increase % | L21: HI
B22: 1.13 | C22: Submission Level Rate Increase % | L22: ID
L23: IL
C24: Section II: Experience Period and Current Plan Level Information | L24: IN
B25: 2.1 | C25: Plan ID (Standard Component ID) | D25: Total | E25: =IF(E13<>"",E13,"") ->  | L25: IA
B26: 2.2 | C26: Allowed Claims | D26: =SUM(E26:XFD26) -> 0 | L26: KS
B27: 2.3 | C27: Reinsurance | D27: =SUM(E27:XFD27) -> 0 | L27: KY
B28: 2.4 | C28: Member Cost Sharing | D28: =SUM(E28:XFD28) -> 0 | L28: LA
B29: 2.5 | C29: Cost Sharing Reduction | D29: =SUM(E29:XFD29) -> 0 | L29: ME
B30: 2.6 | C30: Incurred Claims | D30: =D26-D27-D28-D29 -> 0 | E30: =E26-E27-E28-E29 -> 0 | L30: MD
B31: 2.7 | C31: Risk Adjustment Transfer Amount | D31: =SUM(E31:XFD31) -> 0 | L31: MA
B32: 2.8 | C32: Premium | D32: =SUM(E32:XFD32) -> 0 | L32: MI
B33: 2.9 | C33: Experience Period Member Months | D33: =SUM(E33:XFD33) -> 0 | L33: MN
B34: 2.10 | C34: Current Enrollment | D34: =SUM(E34:XFD34) -> 0 | L34: MS
B35: 2.11 | C35: Current Premium PMPM | D35: =SUMPRODUCT(E35:XFD35,E34:XFD34)/D34 ->  | L35: MO
B36: 2.12 | C36: Loss Ratio | D36: =D30/(D31+D32) ->  | E36: =E30/(E31+E32) ->  | L36: MT
C37: Per Member Per Month | L37: NE
B38: 2.13 | C38: Allowed Claims | D38: =D26/D33 ->  | E38: =E26/E33 ->  | L38: NV
B39: 2.14 | C39: Reinsurance | D39: =D27/D33 ->  | E39: =E27/E33 ->  | L39: NH
B40: 2.15 | C40: Member Cost Sharing | D40: =D28/D33 ->  | E40: =E28/E33 ->  | L40: NJ
B41: 2.16 | C41: Cost Sharing Reduction | D41: =D29/D33 ->  | E41: =E29/E33 ->  | L41: NM
B42: 2.17 | C42: Incurred Claims | D42: =D30/D33 ->  | E42: =E30/E33 ->  | L42: NY
B43: 2.18 | C43: Risk Adjustment Transfer Amount | D43: =D31/D33 ->  | E43: =E31/E33 ->  | L43: NC
B44: 2.19 | C44: Premium | D44: =D32/D33 ->  | E44: =E32/E33 ->  | L44: ND
L45: OH
C46: Section III: Plan Adjustment Factors | L46: OK
B47: 3.1 | C47: Plan ID (Standard Component ID) | E47: =IF(E13<>"",E13,"") ->  | L47: OR
B48: 3.2 | C48: Market Adjusted Index Rate | E48: ='Wksh 1 - Market Experience'!F46 -> 0 | L48: PA
B49: 3.3 | C49: AV and Cost Sharing Design of Plan | L49: RI
B50: 3.4 | C50: Provider Network Adjustment | L50: SC
B51: 3.5 | C51: Benefits in Addition to EHB | L51: SD
C52: Administrative Costs | L52: TN
B53: 3.6 | C53: Administrative Expense | L53: TX
B54: 3.7 | C54: Taxes and Fees | L54: UT
B55: 3.8 | C55: Profit & Risk Load | L55: VT
B56: 3.9 | C56: Catastrophic Adjustment | L56: VA
B57: 3.10 | C57: Plan Adjusted Index Rate | E57: =($E$48*PRODUCT(E49:E51)*E56)/(1-SUM(E53:E55)) -> 0 | L57: WA
L58: WV
B59: 3.11 | C59: Age Calibration Factor | E59: =IF(D59<>"", D59, "") ->  | L59: WI
B60: 3.12 | C60: Geographic Calibration Factor | E60: =IF(D60<>"", D60, "") ->  | L60: WY
B61: 3.13 | C61: Tobacco Calibration Factor | E61: =IF(D61<>"", D61, "") -> 
B62: 3.14 | C62: Calibrated Plan Adjusted Index Rate | E62: =E57*(PRODUCT($E$59:$E$61)) -> 0
C64: Section IV: Projected Plan Level Information
B65: 4.1 | C65: Plan ID (Standard Component ID) | D65: Total | E65: =IF(E13<>"",E13,"") -> 
B66: 4.2 | C66: Allowed Claims | D66: =SUM(E66:XFD66) -> 0
B67: 4.3 | C67: Reinsurance | D67: =SUM(E67:XFD67) -> 0
B68: 4.4 | C68: Member Cost Sharing | D68: =SUM(E68:XFD68) -> 0
B69: 4.5 | C69: Cost Sharing Reduction | D69: =SUM(E69:XFD69) -> 0
B70: 4.6 | C70: Incurred Claims | D70: =D66-D67-D68-D69 -> 0 | E70: =E66-E67-E68-E69 -> 0
B71: 4.7 | C71: Risk Adjustment Transfer Amount | D71: =SUM(E71:XFD71) -> 0
B72: 4.8 | C72: Premium | D72: =SUM(E72:XFD72) -> 0
B73: 4.9 | C73: Projected Member Months | D73: =SUM(E73:XFD73) -> 0
B74: 4.10 | C74: Loss Ratio | D74: =D70/(D71+D72) ->  | E74: =E70/(E71+E72) -> 
C75: Per Member Per Month
B76: 4.11 | C76: Allowed Claims | D76: =D66/D73 ->  | E76: =E66/E73 -> 
B77: 4.12 | C77: Reinsurance | D77: =D67/D73 ->  | E77: =E67/E73 -> 
B78: 4.13 | C78: Member Cost Sharing | D78: =D68/D73 ->  | E78: =E68/E73 -> 
B79: 4.14 | C79: Cost Sharing Reduction | D79: =D69/D73 ->  | E79: =E69/E73 -> 
B80: 4.15 | C80: Incurred Claims | D80: =D70/D73 ->  | E80: =E70/E73 -> 
B81: 4.16 | C81: Risk Adjustment Transfer Amount | D81: =D71/D73 ->  | E81: =E71/E73 -> 
B82: 4.17 | C82: Premium | D82: =D72/D73 ->  | E82: =E72/E73 -> 
